{"text_format":"1","workbook":"xlsx","n_sheets":4,"sheets":["1_Determine Priorities","2_Choose Actions","3_Finalize Your Plan","Lists and Sum"],"not_rendered":{"charts":0,"images":1,"macros":1,"external_links":0,"defined_names":7,"comments":0,"pivot_tables":0},"unopened":[],"bounds":{"document_bytes":16777216,"sheet_cells":100000,"rows_first":2000,"rows_last":500,"rows_between":2000,"halvings":0,"cell_chars":16384,"cell_head_chars":4096},"cells_cut":0,"cells_raw":0,"read":"whole","date_system":"1900"}

{"sheet":"1_Determine Priorities","index":0,"n_rows":38,"n_cols":14,"rows_kept":38,"cut":false,"hidden":false,"merged":[[1,1,1,9],[3,2,4,7],[3,8,5,8]]}
[null,null,null,null,null,null,null,null,null,"Student Success Collaborative"]
[null,"Step One: Determine Your Priorities for Student Interventions"]
[]
[null,null,"Instructions: Use this diagnostic to determine priorities for your upcoming student interventions. Select responses to each diagnostic question via the dropdown options. The \"TOTAL\" column will update automatically and suggest student needs/subpopulations to include in your intervention plan this academic year. Then make your final selections for which interventions to include in your plan by selecting \"Yes\" in the far right column. Then move on to the next tab of this workbook."]
[]
[]
[null,null,"Category","Student Need/Subpopulation","What level of priority is this for your institution to put additional attention on?","How well do you think this student need or subpopulation is being addressed? ","How much effort would be needed to better address this student need or subpopulation?","TOTAL","Include in your intervention plan for this academic year?",null,null,"How well do you think this student need or subpopulation is being addressed? ","How much effort would be needed to better address this student need or subpopulation?","What level of priority is this for your institution to put additional attention on?"]
[null,null,"Basic Needs and Wellness","Lack of technology or Wi-Fi",null,null,null,{"$f":"IF(SUM(L8:N8)=0,\"\",SUM(L8:N8))","v":""},"No",null,null,{"$f":"IFERROR(VLOOKUP($F8,'Lists and Sum'!$A$2:$B$6,2,0),\"\")","v":""},{"$f":"IFERROR(VLOOKUP($G8,'Lists and Sum'!$C$2:$D$6,2,0),\"\")","v":""},{"$f":"IFERROR(VLOOKUP($E8,'Lists and Sum'!$E$2:$F$6,2,0),\"\")","v":""}]
[null,null,"Basic Needs and Wellness","Mental health concerns",null,null,null,{"$f":"IF(SUM(L9:N9)=0,\"\",SUM(L9:N9))","v":""},"No",null,null,{"$f":"IFERROR(VLOOKUP($F9,'Lists and Sum'!$A$2:$B$6,2,0),\"\")","v":""},{"$f":"IFERROR(VLOOKUP($G9,'Lists and Sum'!$C$2:$D$6,2,0),\"\")","v":""},{"$f":"IFERROR(VLOOKUP($E9,'Lists and Sum'!$E$2:$F$6,2,0),\"\")","v":""}]
[null,null,"Basic Needs and Wellness","Physical health concerns",null,null,null,"","No",null,null,{"$f":"IFERROR(VLOOKUP($F10,'Lists and Sum'!$A$2:$B$6,2,0),\"\")","v":""},{"$f":"IFERROR(VLOOKUP($G10,'Lists and Sum'!$C$2:$D$6,2,0),\"\")","v":""},{"$f":"IFERROR(VLOOKUP($E10,'Lists and Sum'!$E$2:$F$6,2,0),\"\")","v":""}]
[null,null,"Basic Needs and Wellness","Food insecurity",null,null,null,"","No",null,null,{"$f":"IFERROR(VLOOKUP($F11,'Lists and Sum'!$A$2:$B$6,2,0),\"\")","v":""},{"$f":"IFERROR(VLOOKUP($G11,'Lists and Sum'!$C$2:$D$6,2,0),\"\")","v":""},{"$f":"IFERROR(VLOOKUP($E11,'Lists and Sum'!$E$2:$F$6,2,0),\"\")","v":""}]
[null,null,"Basic Needs and Wellness","Housing insecurity",null,null,null,"","No",null,null,{"$f":"IFERROR(VLOOKUP($F12,'Lists and Sum'!$A$2:$B$6,2,0),\"\")","v":""},{"$f":"IFERROR(VLOOKUP($G12,'Lists and Sum'!$C$2:$D$6,2,0),\"\")","v":""},{"$f":"IFERROR(VLOOKUP($E12,'Lists and Sum'!$E$2:$F$6,2,0),\"\")","v":""}]
[null,null,"Financial","Unmet financial need or change in financial circumstances",null,null,null,"","No",null,null,{"$f":"IFERROR(VLOOKUP($F13,'Lists and Sum'!$A$2:$B$6,2,0),\"\")","v":""},{"$f":"IFERROR(VLOOKUP($G13,'Lists and Sum'!$C$2:$D$6,2,0),\"\")","v":""},{"$f":"IFERROR(VLOOKUP($E13,'Lists and Sum'!$E$2:$F$6,2,0),\"\")","v":""}]
[null,null,"Financial","Missing out on aid / FAFSA not filed",null,null,null,"","No",null,null,{"$f":"IFERROR(VLOOKUP($F14,'Lists and Sum'!$A$2:$B$6,2,0),\"\")","v":""},{"$f":"IFERROR(VLOOKUP($G14,'Lists and Sum'!$C$2:$D$6,2,0),\"\")","v":""},{"$f":"IFERROR(VLOOKUP($E14,'Lists and Sum'!$E$2:$F$6,2,0),\"\")","v":""}]
[null,null,"Financial","Outstanding balances preventing registration",null,null,null,"","No",null,null,{"$f":"IFERROR(VLOOKUP($F15,'Lists and Sum'!$A$2:$B$6,2,0),\"\")","v":""},{"$f":"IFERROR(VLOOKUP($G15,'Lists and Sum'!$C$2:$D$6,2,0),\"\")","v":""},{"$f":"IFERROR(VLOOKUP($E15,'Lists and Sum'!$E$2:$F$6,2,0),\"\")","v":""}]
[null,null,"Financial","Student employment needs",null,null,null,"","No",null,null,{"$f":"IFERROR(VLOOKUP($F16,'Lists and Sum'!$A$2:$B$6,2,0),\"\")","v":""},{"$f":"IFERROR(VLOOKUP($G16,'Lists and Sum'!$C$2:$D$6,2,0),\"\")","v":""},{"$f":"IFERROR(VLOOKUP($E16,'Lists and Sum'!$E$2:$F$6,2,0),\"\")","v":""}]
[null,null,"Engagement and Belonging","Virtual or hybrid environment engagement",null,null,null,"","No",null,null,{"$f":"IFERROR(VLOOKUP($F17,'Lists and Sum'!$A$2:$B$6,2,0),\"\")","v":""},{"$f":"IFERROR(VLOOKUP($G17,'Lists and Sum'!$C$2:$D$6,2,0),\"\")","v":""},{"$f":"IFERROR(VLOOKUP($E17,'Lists and Sum'!$E$2:$F$6,2,0),\"\")","v":""}]
[null,null,"Engagement and Belonging","Lack of confidence",null,null,null,"","No",null,null,{"$f":"IFERROR(VLOOKUP($F18,'Lists and Sum'!$A$2:$B$6,2,0),\"\")","v":""},{"$f":"IFERROR(VLOOKUP($G18,'Lists and Sum'!$C$2:$D$6,2,0),\"\")","v":""},{"$f":"IFERROR(VLOOKUP($E18,'Lists and Sum'!$E$2:$F$6,2,0),\"\")","v":""}]
[null,null,"Engagement and Belonging","Campus culture or climate",null,null,null,"","No",null,null,{"$f":"IFERROR(VLOOKUP($F19,'Lists and Sum'!$A$2:$B$6,2,0),\"\")","v":""},{"$f":"IFERROR(VLOOKUP($G19,'Lists and Sum'!$C$2:$D$6,2,0),\"\")","v":""},{"$f":"IFERROR(VLOOKUP($E19,'Lists and Sum'!$E$2:$F$6,2,0),\"\")","v":""}]
[null,null,"Engagement and Belonging","Relationships with peers",null,null,null,"","No",null,null,{"$f":"IFERROR(VLOOKUP($F20,'Lists and Sum'!$A$2:$B$6,2,0),\"\")","v":""},{"$f":"IFERROR(VLOOKUP($G20,'Lists and Sum'!$C$2:$D$6,2,0),\"\")","v":""},{"$f":"IFERROR(VLOOKUP($E20,'Lists and Sum'!$E$2:$F$6,2,0),\"\")","v":""}]
[null,null,"Engagement and Belonging","Relationships with staff & faculty",null,null,null,"","No",null,null,{"$f":"IFERROR(VLOOKUP($F21,'Lists and Sum'!$A$2:$B$6,2,0),\"\")","v":""},{"$f":"IFERROR(VLOOKUP($G21,'Lists and Sum'!$C$2:$D$6,2,0),\"\")","v":""},{"$f":"IFERROR(VLOOKUP($E21,'Lists and Sum'!$E$2:$F$6,2,0),\"\")","v":""}]
[null,null,"Engagement and Belonging","Involvement in student activities or organizations",null,null,null,"","No",null,null,{"$f":"IFERROR(VLOOKUP($F22,'Lists and Sum'!$A$2:$B$6,2,0),\"\")","v":""},{"$f":"IFERROR(VLOOKUP($G22,'Lists and Sum'!$C$2:$D$6,2,0),\"\")","v":""},{"$f":"IFERROR(VLOOKUP($E22,'Lists and Sum'!$E$2:$F$6,2,0),\"\")","v":""}]
[null,null,"Academic Performance","Low mid-term grades ",null,null,null,"","No",null,null,{"$f":"IFERROR(VLOOKUP($F23,'Lists and Sum'!$A$2:$B$6,2,0),\"\")","v":""},{"$f":"IFERROR(VLOOKUP($G23,'Lists and Sum'!$C$2:$D$6,2,0),\"\")","v":""},{"$f":"IFERROR(VLOOKUP($E23,'Lists and Sum'!$E$2:$F$6,2,0),\"\")","v":""}]
[null,null,"Academic Performance","Murky Middle (2.0-3.0 GPA) or close to probation",null,null,null,"","No",null,null,{"$f":"IFERROR(VLOOKUP($F24,'Lists and Sum'!$A$2:$B$6,2,0),\"\")","v":""},{"$f":"IFERROR(VLOOKUP($G24,'Lists and Sum'!$C$2:$D$6,2,0),\"\")","v":""},{"$f":"IFERROR(VLOOKUP($E24,'Lists and Sum'!$E$2:$F$6,2,0),\"\")","v":""}]
[null,null,"Academic Performance","Declining GPA",null,null,null,"","No",null,null,{"$f":"IFERROR(VLOOKUP($F25,'Lists and Sum'!$A$2:$B$6,2,0),\"\")","v":""},{"$f":"IFERROR(VLOOKUP($G25,'Lists and Sum'!$C$2:$D$6,2,0),\"\")","v":""},{"$f":"IFERROR(VLOOKUP($E25,'Lists and Sum'!$E$2:$F$6,2,0),\"\")","v":""}]
[null,null,"Academic Performance","Academic Probation",null,null,null,"","No",null,null,{"$f":"IFERROR(VLOOKUP($F26,'Lists and Sum'!$A$2:$B$6,2,0),\"\")","v":""},{"$f":"IFERROR(VLOOKUP($G26,'Lists and Sum'!$C$2:$D$6,2,0),\"\")","v":""},{"$f":"IFERROR(VLOOKUP($E26,'Lists and Sum'!$E$2:$F$6,2,0),\"\")","v":""}]
[null,null,"Academic Performance","Conditionally admitted or academically underprepared",null,null,null,"","No",null,null,{"$f":"IFERROR(VLOOKUP($F27,'Lists and Sum'!$A$2:$B$6,2,0),\"\")","v":""},{"$f":"IFERROR(VLOOKUP($G27,'Lists and Sum'!$C$2:$D$6,2,0),\"\")","v":""},{"$f":"IFERROR(VLOOKUP($E27,'Lists and Sum'!$E$2:$F$6,2,0),\"\")","v":""}]
[null,null,"Academic Progress","Underloading credits",null,null,null,"","No",null,null,{"$f":"IFERROR(VLOOKUP($F28,'Lists and Sum'!$A$2:$B$6,2,0),\"\")","v":""},{"$f":"IFERROR(VLOOKUP($G28,'Lists and Sum'!$C$2:$D$6,2,0),\"\")","v":""},{"$f":"IFERROR(VLOOKUP($E28,'Lists and Sum'!$E$2:$F$6,2,0),\"\")","v":""}]
[null,null,"Academic Progress","No academic plan submitted",null,null,null,"","No",null,null,{"$f":"IFERROR(VLOOKUP($F29,'Lists and Sum'!$A$2:$B$6,2,0),\"\")","v":""},{"$f":"IFERROR(VLOOKUP($G29,'Lists and Sum'!$C$2:$D$6,2,0),\"\")","v":""},{"$f":"IFERROR(VLOOKUP($E29,'Lists and Sum'!$E$2:$F$6,2,0),\"\")","v":""}]
[null,null,"Academic Progress","Accumulating unproductive credits/impacts of major switching",null,null,null,"","No",null,null,{"$f":"IFERROR(VLOOKUP($F30,'Lists and Sum'!$A$2:$B$6,2,0),\"\")","v":""},{"$f":"IFERROR(VLOOKUP($G30,'Lists and Sum'!$C$2:$D$6,2,0),\"\")","v":""},{"$f":"IFERROR(VLOOKUP($E30,'Lists and Sum'!$E$2:$F$6,2,0),\"\")","v":""}]
[null,null,"Academic Progress","Taking courses too late",null,null,null,"","No",null,null,{"$f":"IFERROR(VLOOKUP($F31,'Lists and Sum'!$A$2:$B$6,2,0),\"\")","v":""},{"$f":"IFERROR(VLOOKUP($G31,'Lists and Sum'!$C$2:$D$6,2,0),\"\")","v":""},{"$f":"IFERROR(VLOOKUP($E31,'Lists and Sum'!$E$2:$F$6,2,0),\"\")","v":""}]
[null,null,"Re-Enrollment","Unregistered without holds/in good academic standing ",null,null,null,null,"Yes",null,null,{"$f":"IFERROR(VLOOKUP($F32,'Lists and Sum'!$A$2:$B$6,2,0),\"\")","v":""},{"$f":"IFERROR(VLOOKUP($G32,'Lists and Sum'!$C$2:$D$6,2,0),\"\")","v":""},{"$f":"IFERROR(VLOOKUP($E32,'Lists and Sum'!$E$2:$F$6,2,0),\"\")","v":""}]
[null,null,"Re-Enrollment","Unregistered with unresolved holds",null,null,null,null,"Yes",null,null,{"$f":"IFERROR(VLOOKUP($F33,'Lists and Sum'!$A$2:$B$6,2,0),\"\")","v":""},{"$f":"IFERROR(VLOOKUP($G33,'Lists and Sum'!$C$2:$D$6,2,0),\"\")","v":""},{"$f":"IFERROR(VLOOKUP($E33,'Lists and Sum'!$E$2:$F$6,2,0),\"\")","v":""}]
[null,null,"Re-Enrollment","Unregistered and unresponsive to advisor outreach",null,null,null,null,"Yes",null,null,{"$f":"IFERROR(VLOOKUP($F34,'Lists and Sum'!$A$2:$B$6,2,0),\"\")","v":""},{"$f":"IFERROR(VLOOKUP($G34,'Lists and Sum'!$C$2:$D$6,2,0),\"\")","v":""},{"$f":"IFERROR(VLOOKUP($E34,'Lists and Sum'!$E$2:$F$6,2,0),\"\")","v":""}]
[null,null,"[Optional - Insert additional categories here]","[Optional - Insert additional student needs/subpopulations here (1)]",null,null,null,"","No",null,null,{"$f":"IFERROR(VLOOKUP($F35,'Lists and Sum'!$A$2:$B$6,2,0),\"\")","v":""},{"$f":"IFERROR(VLOOKUP($G35,'Lists and Sum'!$C$2:$D$6,2,0),\"\")","v":""},{"$f":"IFERROR(VLOOKUP($E35,'Lists and Sum'!$E$2:$F$6,2,0),\"\")","v":""}]
[null,null,"[Optional - Insert additional categories here]","[Optional - Insert additional student needs/subpopulations here (2)]",null,null,null,"","No",null,null,{"$f":"IFERROR(VLOOKUP($F36,'Lists and Sum'!$A$2:$B$6,2,0),\"\")","v":""},{"$f":"IFERROR(VLOOKUP($G36,'Lists and Sum'!$C$2:$D$6,2,0),\"\")","v":""},{"$f":"IFERROR(VLOOKUP($E36,'Lists and Sum'!$E$2:$F$6,2,0),\"\")","v":""}]
[null,null,"[Optional - Insert additional categories here]","[Optional - Insert additional student needs/subpopulations here (3)]",null,null,null,"","No",null,null,{"$f":"IFERROR(VLOOKUP($F37,'Lists and Sum'!$A$2:$B$6,2,0),\"\")","v":""},{"$f":"IFERROR(VLOOKUP($G37,'Lists and Sum'!$C$2:$D$6,2,0),\"\")","v":""},{"$f":"IFERROR(VLOOKUP($E37,'Lists and Sum'!$E$2:$F$6,2,0),\"\")","v":""}]
[null,null,"[Optional - Insert additional categories here]","[Optional - Insert additional student needs/subpopulations here (4)]",null,null,null,"","No",null,null,{"$f":"IFERROR(VLOOKUP($F38,'Lists and Sum'!$A$2:$B$6,2,0),\"\")","v":""},{"$f":"IFERROR(VLOOKUP($G38,'Lists and Sum'!$C$2:$D$6,2,0),\"\")","v":""},{"$f":"IFERROR(VLOOKUP($E38,'Lists and Sum'!$E$2:$F$6,2,0),\"\")","v":""}]

{"sheet":"2_Choose Actions","index":1,"n_rows":77,"n_cols":9,"rows_kept":77,"cut":false,"hidden":false,"merged":[[1,1,1,8],[3,7,5,7],[3,2,4,4]]}
[null,null,null,null,null,null,null,null,"Student Success Collaborative"]
[null,"Step Two: Choose Specific Intervention Actions for Each Priority"]
[]
[null,null,"Instructions: Now that you have selected your priorities, use the table below to choose specific intervention actions for each priority. \nClick the button to the right to automatically refresh the table below with your specific priorities from the previous tab. \nYou may choose to include all intervention actions in your final plan, or only some. Select \"Yes\" in the far right column to make your final selection. \nThen move on to the next tab of this workbook."]
[]
[]
[null,null,"Category","Student Need/Subpopulation","Intervention Action","Code","Priority?","Include in your intervention plan for this academic year?"]
[null,null,"Basic Needs and Wellness","Lack of technology or Wi-Fi","Refer students to IT department to get access to a loaner laptop or wifi hot spot.","a1",{"$f":"VLOOKUP(Index6[[#This Row],[Student Need/Subpopulation]],Table3[[Student Need/Subpopulation]:[Include in your intervention plan for this academic year?]],6,0)","v":"No"},"No"]
[null,null,"Basic Needs and Wellness","Lack of technology or Wi-Fi","Send application to the student hardship fund/emergency grants to apply for funds to purchase laptop or wifi hot spot.","a2",{"$f":"VLOOKUP(Index6[[#This Row],[Student Need/Subpopulation]],Table3[[Student Need/Subpopulation]:[Include in your intervention plan for this academic year?]],6,0)","v":"No"},"No"]
[null,null,"Basic Needs and Wellness","Lack of technology or Wi-Fi","If campus is closed, e-mail local students with information about where students can access wifi in areas on or surrounding campus.","a3",{"$f":"VLOOKUP(Index6[[#This Row],[Student Need/Subpopulation]],Table3[[Student Need/Subpopulation]:[Include in your intervention plan for this academic year?]],6,0)","v":"No"},"No"]
[null,null,"Basic Needs and Wellness","Mental health concerns","Refer student to institution counseling services, wellness office, or community agencies.","b1",{"$f":"VLOOKUP(Index6[[#This Row],[Student Need/Subpopulation]],Table3[[Student Need/Subpopulation]:[Include in your intervention plan for this academic year?]],6,0)","v":"No"},"No"]
[null,null,"Basic Needs and Wellness","Mental health concerns","E-mail students links to free online mental health resources to access including any available benefits through student health insurance.","b2",{"$f":"VLOOKUP(Index6[[#This Row],[Student Need/Subpopulation]],Table3[[Student Need/Subpopulation]:[Include in your intervention plan for this academic year?]],6,0)","v":"No"},"No"]
[null,null,"Basic Needs and Wellness","Mental health concerns","Share information about available support groups or peer-led organizations.","b3",{"$f":"VLOOKUP(Index6[[#This Row],[Student Need/Subpopulation]],Table3[[Student Need/Subpopulation]:[Include in your intervention plan for this academic year?]],6,0)","v":"No"},"No"]
[null,null,"Basic Needs and Wellness","Physical health concerns","Refer students to institution health services for an appointment.","c1",{"$f":"VLOOKUP(Index6[[#This Row],[Student Need/Subpopulation]],Table3[[Student Need/Subpopulation]:[Include in your intervention plan for this academic year?]],6,0)","v":"No"},"No"]
[null,null,"Basic Needs and Wellness","Physical health concerns","E-mail students information about relevant available benefits through student health insurance, including telehealth support.","c2",{"$f":"VLOOKUP(Index6[[#This Row],[Student Need/Subpopulation]],Table3[[Student Need/Subpopulation]:[Include in your intervention plan for this academic year?]],6,0)","v":"No"},"No"]
[null,null,"Basic Needs and Wellness","Physical health concerns","Refer students to local clinics or community health agencies.","c3",{"$f":"VLOOKUP(Index6[[#This Row],[Student Need/Subpopulation]],Table3[[Student Need/Subpopulation]:[Include in your intervention plan for this academic year?]],6,0)","v":"No"},"No"]
[null,null,"Basic Needs and Wellness","Food insecurity","Share information about food bank resources on campus or in community.","d1",{"$f":"VLOOKUP(Index6[[#This Row],[Student Need/Subpopulation]],Table3[[Student Need/Subpopulation]:[Include in your intervention plan for this academic year?]],6,0)","v":"No"},"No"]
[null,null,"Basic Needs and Wellness","Food insecurity","Send application to the student hardship fund/emergency grants.","d2",{"$f":"VLOOKUP(Index6[[#This Row],[Student Need/Subpopulation]],Table3[[Student Need/Subpopulation]:[Include in your intervention plan for this academic year?]],6,0)","v":"No"},"No"]
[null,null,"Basic Needs and Wellness","Housing insecurity","Send application to the student hardship fund/emergency grants.","e1",{"$f":"VLOOKUP(Index6[[#This Row],[Student Need/Subpopulation]],Table3[[Student Need/Subpopulation]:[Include in your intervention plan for this academic year?]],6,0)","v":"No"},"No"]
[null,null,"Basic Needs and Wellness","Housing insecurity","Refer students to local community agencies that provide housing assistance.","e2",{"$f":"VLOOKUP(Index6[[#This Row],[Student Need/Subpopulation]],Table3[[Student Need/Subpopulation]:[Include in your intervention plan for this academic year?]],6,0)","v":"No"},"No"]
[null,null,"Basic Needs and Wellness","Housing insecurity","Connect students with institution housing office for any available on-campus housing assistance.","e3",{"$f":"VLOOKUP(Index6[[#This Row],[Student Need/Subpopulation]],Table3[[Student Need/Subpopulation]:[Include in your intervention plan for this academic year?]],6,0)","v":"No"},"No"]
[null,null,"Financial","Unmet financial need or change in financial circumstances","Send application to the student hardship fund/emergency grants.","f1",{"$f":"VLOOKUP(Index6[[#This Row],[Student Need/Subpopulation]],Table3[[Student Need/Subpopulation]:[Include in your intervention plan for this academic year?]],6,0)","v":"No"},"No"]
[null,null,"Financial","Unmet financial need or change in financial circumstances","E-mail information on available scholarships or financial aid the student has not applied for.","f2",{"$f":"VLOOKUP(Index6[[#This Row],[Student Need/Subpopulation]],Table3[[Student Need/Subpopulation]:[Include in your intervention plan for this academic year?]],6,0)","v":"No"},"No"]
[null,null,"Financial","Unmet financial need or change in financial circumstances","Send an appointment campaign for students to schedule a financial counseling meeting or workshop.","f3",{"$f":"VLOOKUP(Index6[[#This Row],[Student Need/Subpopulation]],Table3[[Student Need/Subpopulation]:[Include in your intervention plan for this academic year?]],6,0)","v":"No"},"No"]
[null,null,"Financial","Missing out on aid / FAFSA not filed","Send an appointment campaign for students to meet with Financial Aid office about completing the FAFSA.","g1",{"$f":"VLOOKUP(Index6[[#This Row],[Student Need/Subpopulation]],Table3[[Student Need/Subpopulation]:[Include in your intervention plan for this academic year?]],6,0)","v":"No"},"No"]
[null,null,"Financial","Missing out on aid / FAFSA not filed","Conduct multimodal (e-mail, text, phone) outreach to students to remind them about FAFSA deadline and process to complete.","g2",{"$f":"VLOOKUP(Index6[[#This Row],[Student Need/Subpopulation]],Table3[[Student Need/Subpopulation]:[Include in your intervention plan for this academic year?]],6,0)","v":"No"},"No"]
[null,null,"Financial","Outstanding balances preventing registration","Send an appointment campaign for students to meet with Business Office or Student Accounts about resolving balances prior to course registration window.","h1",{"$f":"VLOOKUP(Index6[[#This Row],[Student Need/Subpopulation]],Table3[[Student Need/Subpopulation]:[Include in your intervention plan for this academic year?]],6,0)","v":"No"},"No"]
[null,null,"Financial","Outstanding balances preventing registration","Conduct multimodal (e-mail, text, phone) outreach to students to remind them about resolving balances in order to be able to register for classes.","h2",{"$f":"VLOOKUP(Index6[[#This Row],[Student Need/Subpopulation]],Table3[[Student Need/Subpopulation]:[Include in your intervention plan for this academic year?]],6,0)","v":"No"},"No"]
[null,null,"Financial","Student employment needs","Send an appointment campaign to work-study students for them to meet with the Office of Student Employment to identify job placements.","i1",{"$f":"VLOOKUP(Index6[[#This Row],[Student Need/Subpopulation]],Table3[[Student Need/Subpopulation]:[Include in your intervention plan for this academic year?]],6,0)","v":"No"},"No"]
[null,null,"Financial","Student employment needs","E-mail work-study students or those in need of employment link to institution student employment portal.","i2",{"$f":"VLOOKUP(Index6[[#This Row],[Student Need/Subpopulation]],Table3[[Student Need/Subpopulation]:[Include in your intervention plan for this academic year?]],6,0)","v":"No"},"No"]
[null,null,"Financial","Student employment needs","E-mail work-study students or those in need of employment information on local employers with history of hiring students.","i3",{"$f":"VLOOKUP(Index6[[#This Row],[Student Need/Subpopulation]],Table3[[Student Need/Subpopulation]:[Include in your intervention plan for this academic year?]],6,0)","v":"No"},"No"]
[null,null,"Engagement and Belonging","Virtual or hybrid environment engagement","Send an appointment campaign for student to meet with their advisor or success coach to discuss their engagement in their courses and identify any barriers to participating in courses virtually.","j1",{"$f":"VLOOKUP(Index6[[#This Row],[Student Need/Subpopulation]],Table3[[Student Need/Subpopulation]:[Include in your intervention plan for this academic year?]],6,0)","v":"No"},"No"]
[null,null,"Engagement and Belonging","Virtual or hybrid environment engagement","Reach out to students via text or e-mail to check and see how they are doing and identify any barriers to participating in courses virtually.","j2",{"$f":"VLOOKUP(Index6[[#This Row],[Student Need/Subpopulation]],Table3[[Student Need/Subpopulation]:[Include in your intervention plan for this academic year?]],6,0)","v":"No"},"No"]
[null,null,"Engagement and Belonging","Lack of confidence","Reach out to students via text or e-mail to promote campus resources geared towards building confidence in aligned area(s). ","k1",{"$f":"VLOOKUP(Index6[[#This Row],[Student Need/Subpopulation]],Table3[[Student Need/Subpopulation]:[Include in your intervention plan for this academic year?]],6,0)","v":"No"},"No"]
[null,null,"Engagement and Belonging","Lack of confidence","Send an appointment campaign for advisor or staff to meet with the student, discuss their feelings and experiences, and develop an action plan to build confidence in aligned area(s).","k2",{"$f":"VLOOKUP(Index6[[#This Row],[Student Need/Subpopulation]],Table3[[Student Need/Subpopulation]:[Include in your intervention plan for this academic year?]],6,0)","v":"No"},"No"]
[null,null,"Engagement and Belonging","Lack of confidence","Send an appointment campaign to invite students to a workshop or small group session focused on confidence building.","k3",{"$f":"VLOOKUP(Index6[[#This Row],[Student Need/Subpopulation]],Table3[[Student Need/Subpopulation]:[Include in your intervention plan for this academic year?]],6,0)","v":"No"},"No"]
[null,null,"Engagement and Belonging","Lack of confidence","Peer mentors reach out to students via text or e-mail to connect to discuss their experiences and help the students develop an action plan to build confidence in aligned area(s). ","k4",{"$f":"VLOOKUP(Index6[[#This Row],[Student Need/Subpopulation]],Table3[[Student Need/Subpopulation]:[Include in your intervention plan for this academic year?]],6,0)","v":"No"},"No"]
[null,null,"Engagement and Belonging","Campus culture or climate","Send an appointment campaign for students to meet with their advisor, success coach, or staff who have a connection (e.g. Athletics, Residence Life, Student Life) to discuss their experiences and identify the best ways to support.","l1",{"$f":"VLOOKUP(Index6[[#This Row],[Student Need/Subpopulation]],Table3[[Student Need/Subpopulation]:[Include in your intervention plan for this academic year?]],6,0)","v":"No"},"No"]
[null,null,"Engagement and Belonging","Campus culture or climate","E-mail information about relevant campus resources, identity centers, and student organizations - particularly highlighting where specific programs are tailored to particular student populations and needs.","l2",{"$f":"VLOOKUP(Index6[[#This Row],[Student Need/Subpopulation]],Table3[[Student Need/Subpopulation]:[Include in your intervention plan for this academic year?]],6,0)","v":"No"},"No"]
[null,null,"Engagement and Belonging","Relationships with peers","For on-campus students,  Residence Hall Directors e-mail or text the students to invite them to upcoming residence hall programs.","m1",{"$f":"VLOOKUP(Index6[[#This Row],[Student Need/Subpopulation]],Table3[[Student Need/Subpopulation]:[Include in your intervention plan for this academic year?]],6,0)","v":"No"},"No"]
[null,null,"Engagement and Belonging","Relationships with peers","E-mail information about Study Buddies feature in the Navigate Student app to help students form study groups with peers in their courses.","m2",{"$f":"VLOOKUP(Index6[[#This Row],[Student Need/Subpopulation]],Table3[[Student Need/Subpopulation]:[Include in your intervention plan for this academic year?]],6,0)","v":"No"},"No"]
[null,null,"Engagement and Belonging","Relationships with peers","E-mail information for how to sign up for any peer mentorship programs.","m3",{"$f":"VLOOKUP(Index6[[#This Row],[Student Need/Subpopulation]],Table3[[Student Need/Subpopulation]:[Include in your intervention plan for this academic year?]],6,0)","v":"No"},"No"]
[null,null,"Engagement and Belonging","Relationships with peers","E-mail website or information for getting involved with student activities and organizations and any relevant upcoming events (e.g. involvement fair). Tailor communications based on any known interests or student attributes.","m4",{"$f":"VLOOKUP(Index6[[#This Row],[Student Need/Subpopulation]],Table3[[Student Need/Subpopulation]:[Include in your intervention plan for this academic year?]],6,0)","v":"No"},"No"]
[null,null,"Engagement and Belonging","Relationships with peers","Send an appointment campaign for students to sign up for individual meetings, group meetings, or an info session with Student Life or student leaders about getting involved.","m5",{"$f":"VLOOKUP(Index6[[#This Row],[Student Need/Subpopulation]],Table3[[Student Need/Subpopulation]:[Include in your intervention plan for this academic year?]],6,0)","v":"No"},"No"]
[null,null,"Engagement and Belonging","Relationships with staff & faculty","Send an appointment campaign for students to meet with their advisor, success coach, or relevant staff (e.g. Athletics Coach, Residence Hall Director) to schedule time for getting to know each other better.","n1",{"$f":"VLOOKUP(Index6[[#This Row],[Student Need/Subpopulation]],Table3[[Student Need/Subpopulation]:[Include in your intervention plan for this academic year?]],6,0)","v":"No"},"No"]
[null,null,"Engagement and Belonging","Relationships with staff & faculty","E-mail information about any existing faculty mentorship programs or opportunities to participate in research with faculty.","n2",{"$f":"VLOOKUP(Index6[[#This Row],[Student Need/Subpopulation]],Table3[[Student Need/Subpopulation]:[Include in your intervention plan for this academic year?]],6,0)","v":"No"},"No"]
[null,null,"Engagement and Belonging","Relationships with staff & faculty","Faculty e-mail students in their courses encouraging them to attend office hours for relationship building, even if they don't have course related questions.","n3",{"$f":"VLOOKUP(Index6[[#This Row],[Student Need/Subpopulation]],Table3[[Student Need/Subpopulation]:[Include in your intervention plan for this academic year?]],6,0)","v":"No"},"No"]
[null,null,"Engagement and Belonging","Relationships with staff & faculty","For on-campus students, Residence Hall Directors e-mail or text the students to invite them to upcoming residence hall programs.","n4",{"$f":"VLOOKUP(Index6[[#This Row],[Student Need/Subpopulation]],Table3[[Student Need/Subpopulation]:[Include in your intervention plan for this academic year?]],6,0)","v":"No"},"No"]
[null,null,"Engagement and Belonging","Involvement in student activities or organizations","E-mail website or information for getting involved with student activities and organizations and any relevant upcoming events (e.g. involvement fair). Tailor communications based on any known interests or student attributes.","o1",{"$f":"VLOOKUP(Index6[[#This Row],[Student Need/Subpopulation]],Table3[[Student Need/Subpopulation]:[Include in your intervention plan for this academic year?]],6,0)","v":"No"},"No"]
[null,null,"Engagement and Belonging","Involvement in student activities or organizations","Send an appointment campaign for students to sign up for individual meetings, group meetings, or an info session with Student Life or student leaders about getting involved.","o2",{"$f":"VLOOKUP(Index6[[#This Row],[Student Need/Subpopulation]],Table3[[Student Need/Subpopulation]:[Include in your intervention plan for this academic year?]],6,0)","v":"No"},"No"]
[null,null,"Academic Performance","Low mid-term grades ","Send appointment campaigns to encourage students to schedule tutoring appointments for specific courses.","p1",{"$f":"VLOOKUP(Index6[[#This Row],[Student Need/Subpopulation]],Table3[[Student Need/Subpopulation]:[Include in your intervention plan for this academic year?]],6,0)","v":"No"},"No"]
[null,null,"Academic Performance","Low mid-term grades ","E-mail students with information about how to make tutoring appointments or receive academic support (e.g. coaching, supplemental instruction).","p2",{"$f":"VLOOKUP(Index6[[#This Row],[Student Need/Subpopulation]],Table3[[Student Need/Subpopulation]:[Include in your intervention plan for this academic year?]],6,0)","v":"No"},"No"]
[null,null,"Academic Performance","Low mid-term grades ","Send appointment campaigns for students to schedule meetings to make a plan for how to ensure they pass the course.","p3",{"$f":"VLOOKUP(Index6[[#This Row],[Student Need/Subpopulation]],Table3[[Student Need/Subpopulation]:[Include in your intervention plan for this academic year?]],6,0)","v":"No"},"No"]
[null,null,"Academic Performance","Murky Middle (2.0-3.0 GPA) or close to probation","Send an appointment campaign to encourage students to meet to discuss their support needs and make a plan for the term.","q1",{"$f":"VLOOKUP(Index6[[#This Row],[Student Need/Subpopulation]],Table3[[Student Need/Subpopulation]:[Include in your intervention plan for this academic year?]],6,0)","v":"No"},"No"]
[null,null,"Academic Performance","Murky Middle (2.0-3.0 GPA) or close to probation","E-mail students to make them aware they may be in need of academic support to stay on track to graduate. Share information on how to make tutoring appointments or receive academic support.","q2",{"$f":"VLOOKUP(Index6[[#This Row],[Student Need/Subpopulation]],Table3[[Student Need/Subpopulation]:[Include in your intervention plan for this academic year?]],6,0)","v":"No"},"No"]
[null,null,"Academic Performance","Conditionally admitted or academically underprepared","Send an appointment campaign to encourage students to meet to discuss their support needs and make a plan for the term.","r1",{"$f":"VLOOKUP(Index6[[#This Row],[Student Need/Subpopulation]],Table3[[Student Need/Subpopulation]:[Include in your intervention plan for this academic year?]],6,0)","v":"No"},"No"]
[null,null,"Academic Performance","Conditionally admitted or academically underprepared","E-mail students to make them aware they may be in need of academic support to stay on track to graduate. Share information on how to make tutoring appointments or receive academic support.","r2",{"$f":"VLOOKUP(Index6[[#This Row],[Student Need/Subpopulation]],Table3[[Student Need/Subpopulation]:[Include in your intervention plan for this academic year?]],6,0)","v":"No"},"No"]
[null,null,"Academic Performance","Conditionally admitted or academically underprepared","Send an appointment campaign for students to schedule a check-in meeting to discuss how their courses are going. Direct them to academic support as needed based on their early course performance and needs.","r3",{"$f":"VLOOKUP(Index6[[#This Row],[Student Need/Subpopulation]],Table3[[Student Need/Subpopulation]:[Include in your intervention plan for this academic year?]],6,0)","v":"No"},"No"]
[null,null,"Academic Performance","Conditionally admitted or academically underprepared","Reach out via text or e-mail to check-in and see how students' courses are going. Direct them to academic support as needed based on their early course performance and needs.","r4",{"$f":"VLOOKUP(Index6[[#This Row],[Student Need/Subpopulation]],Table3[[Student Need/Subpopulation]:[Include in your intervention plan for this academic year?]],6,0)","v":"No"},"No"]
[null,null,"Academic Performance","Declining GPA","Send an appointment campaign to encourage students to meet to discuss their support needs and make a plan for the term.","s1",{"$f":"VLOOKUP(Index6[[#This Row],[Student Need/Subpopulation]],Table3[[Student Need/Subpopulation]:[Include in your intervention plan for this academic year?]],6,0)","v":"No"},"No"]
[null,null,"Academic Performance","Declining GPA","E-mail students to make them aware they may be in need of academic support to stay on track to graduate. Share information on how to make tutoring appointments or receive academic support.","s2",{"$f":"VLOOKUP(Index6[[#This Row],[Student Need/Subpopulation]],Table3[[Student Need/Subpopulation]:[Include in your intervention plan for this academic year?]],6,0)","v":"No"},"No"]
[null,null,"Academic Performance","Academic Probation","Send an appointment campaign to encourage students to meet to discuss their support needs and make a plan for the term.","t1",{"$f":"VLOOKUP(Index6[[#This Row],[Student Need/Subpopulation]],Table3[[Student Need/Subpopulation]:[Include in your intervention plan for this academic year?]],6,0)","v":"No"},"No"]
[null,null,"Academic Performance","Academic Probation","E-mail students to make them aware they may be in need of academic support to stay on track to graduate. Share information on how to make tutoring appointments or receive academic support.","t2",{"$f":"VLOOKUP(Index6[[#This Row],[Student Need/Subpopulation]],Table3[[Student Need/Subpopulation]:[Include in your intervention plan for this academic year?]],6,0)","v":"No"},"No"]
[null,null,"Academic Progress","Underloading credits","Send an appointment campaign for students to schedule a meeting to discuss revising their registered courses for the upcoming term by adding credits.","u1",{"$f":"VLOOKUP(Index6[[#This Row],[Student Need/Subpopulation]],Table3[[Student Need/Subpopulation]:[Include in your intervention plan for this academic year?]],6,0)","v":"No"},"No"]
[null,null,"Academic Progress","Underloading credits","E-mail students to make them aware of the potential impacts of underloading credits on time to degree, financial aid, and debt and encourage them to register for additional credits for the upcoming term.","u2",{"$f":"VLOOKUP(Index6[[#This Row],[Student Need/Subpopulation]],Table3[[Student Need/Subpopulation]:[Include in your intervention plan for this academic year?]],6,0)","v":"No"},"No"]
[null,null,"Academic Progress","No academic plan submitted","Send an appointment campaign for students to schedule a meeting to work on their academic plan. If available, make suggestions in the Navigate Shared Workspace tool for the student to review in advance and discuss in the meeting.","v1",{"$f":"VLOOKUP(Index6[[#This Row],[Student Need/Subpopulation]],Table3[[Student Need/Subpopulation]:[Include in your intervention plan for this academic year?]],6,0)","v":"No"},"No"]
[null,null,"Academic Progress","No academic plan submitted","E-mail students to discuss next steps on submitting their academic plan and identify any support needs. If available, make suggestions in the Shared Workspace tool for the student to review or flag previously made suggestions.","v2",{"$f":"VLOOKUP(Index6[[#This Row],[Student Need/Subpopulation]],Table3[[Student Need/Subpopulation]:[Include in your intervention plan for this academic year?]],6,0)","v":"No"},"No"]
[null,null,"Academic Progress","Accumulating unproductive credits/impacts of major switching","Send an appointment campaign to schedule an advising meeting to discuss the impact of courses taken to-date and the student's current major, academic plan, and courses to register for the upcoming term to stay on track to graduate.","w1",{"$f":"VLOOKUP(Index6[[#This Row],[Student Need/Subpopulation]],Table3[[Student Need/Subpopulation]:[Include in your intervention plan for this academic year?]],6,0)","v":"No"},"No"]
[null,null,"Academic Progress","Taking courses too late","Send an appointment campaign to schedule an advising meeting to discuss the impact of the timing of courses taken to-date, the student's academic plan, and courses to register for the upcoming term to stay on track to graduate.","x1",{"$f":"VLOOKUP(Index6[[#This Row],[Student Need/Subpopulation]],Table3[[Student Need/Subpopulation]:[Include in your intervention plan for this academic year?]],6,0)","v":"No"},"No"]
[null,null,"Re-Enrollment","Unregistered without holds/in good academic standing ","Advisors do multimodal outreach (e-mail, text, call) to get students registered or identify barriers to registration and connect to appropriate support.","z1",{"$f":"VLOOKUP(Index6[[#This Row],[Student Need/Subpopulation]],Table3[[Student Need/Subpopulation]:[Include in your intervention plan for this academic year?]],6,0)","v":"Yes"},"Yes"]
[null,null,"Re-Enrollment","Unregistered with unresolved holds","Relevant offices send appointment campaigns to schedule meetings to resolve holds.","aa1",{"$f":"VLOOKUP(Index6[[#This Row],[Student Need/Subpopulation]],Table3[[Student Need/Subpopulation]:[Include in your intervention plan for this academic year?]],6,0)","v":"Yes"},"Yes"]
[null,null,"Re-Enrollment","Unregistered with unresolved holds","Relevant offices do multimodal outreach (e-mail, text, call) to help resolve holds.","aa2",{"$f":"VLOOKUP(Index6[[#This Row],[Student Need/Subpopulation]],Table3[[Student Need/Subpopulation]:[Include in your intervention plan for this academic year?]],6,0)","v":"Yes"},"Yes"]
[null,null,"Re-Enrollment","Unregistered and unresponsive to advisor outreach","Multimodal individualized outreach (e-mail, text, call) to confirm re-enrollment plans and identify student needs or issues. Where possible, this is conducted by staff who have relationships with the students.","ab1",{"$f":"VLOOKUP(Index6[[#This Row],[Student Need/Subpopulation]],Table3[[Student Need/Subpopulation]:[Include in your intervention plan for this academic year?]],6,0)","v":"Yes"},"Yes"]
[null,null,{"$f":"'1_Determine Priorities'!C35","v":"[Optional - Insert additional categories here]"},{"$f":"'1_Determine Priorities'!D35","v":"[Optional - Insert additional student needs/subpopulations here (1)]"},"[Optional - Insert additional Intervention Actions here]","zz1",{"$f":"VLOOKUP(Index6[[#This Row],[Student Need/Subpopulation]],Table3[[Student Need/Subpopulation]:[Include in your intervention plan for this academic year?]],6,0)","v":"No"},"No"]
[null,null,{"$f":"'1_Determine Priorities'!C36","v":"[Optional - Insert additional categories here]"},{"$f":"'1_Determine Priorities'!D36","v":"[Optional - Insert additional student needs/subpopulations here (2)]"},"[Optional - Insert additional Intervention Actions here]","zz2",{"$f":"VLOOKUP(Index6[[#This Row],[Student Need/Subpopulation]],Table3[[Student Need/Subpopulation]:[Include in your intervention plan for this academic year?]],6,0)","v":"No"},"No"]
[null,null,{"$f":"'1_Determine Priorities'!C37","v":"[Optional - Insert additional categories here]"},{"$f":"'1_Determine Priorities'!D37","v":"[Optional - Insert additional student needs/subpopulations here (3)]"},"[Optional - Insert additional Intervention Actions here]","zz3",{"$f":"VLOOKUP(Index6[[#This Row],[Student Need/Subpopulation]],Table3[[Student Need/Subpopulation]:[Include in your intervention plan for this academic year?]],6,0)","v":"No"},"No"]
[null,null,{"$f":"'1_Determine Priorities'!C38","v":"[Optional - Insert additional categories here]"},{"$f":"'1_Determine Priorities'!D38","v":"[Optional - Insert additional student needs/subpopulations here (4)]"},"[Optional - Insert additional Intervention Actions here]","zz4",{"$f":"VLOOKUP(Index6[[#This Row],[Student Need/Subpopulation]],Table3[[Student Need/Subpopulation]:[Include in your intervention plan for this academic year?]],6,0)","v":"No"},"No"]

{"sheet":"3_Finalize Your Plan","index":2,"n_rows":77,"n_cols":17,"rows_kept":77,"cut":false,"hidden":false,"merged":[[3,2,4,5]]}
[null,null,null,null,null,null,null,null,null,null,null,null,null,null,null,null,"Student Success Collaborative"]
[null,"Step Three: Finalize Your Intervention Plan"]
[]
[null,null,"Instructions: Use the table below to finalize your intervention plan. Click the button to the right to automatically refresh the table below with your specific priorities from the previous tab. We provide suggestions for how to identify and outreach to students, as well as general timing. You then have additional space to plan your success metrics and any additional notes."]
[]
[]
[null,null,"Category","Student Need/Subpopulation","Intervention Action","When\nWhen in the term does this intervention occur?\n\nEdit our suggestions below to reflect your plans","Identification Tools\nHow will you identify the students for intervention?\n\nEdit our suggestions below to reflect your plans","Intervention Tools\nHow will you intervene with the students?\n\nEdit our suggestions below to reflect your plans","Who\nWho will (1) oversee and (2) execute this intervention? \n\nInput your plans below","Start Date\nWhat exact date will this intervention start?\n\nInput your plans below","End Date\nWhat exact date will this intervention end?\n\nInput your plans below","Process Metrics\nHow will you know the process is working?\n\nInput your plans below","Outcome Metrics\nHow will you measure overall success of the intervention?\n\nInput your plans below","Evaluation Date\nWhen will you assess this intervention?\n\nInput your plans below","Code","Priority?","Other Notes and Next Steps"]
[null,null,"Basic Needs and Wellness","Lack of technology or Wi-Fi","Refer students to IT department to get access to a loaner laptop or wifi hot spot.","Start of the term","Alerts, Progress Reports, Intake Survey, Quick Polls, Survey","E-mail Messaging, Alerts & Cases",null,null,null,null,null,null,"a1",{"$f":"VLOOKUP(Index62[[#This Row],[Code]],Index6[[#All],[Code]:[Include in your intervention plan for this academic year?]],3,0)","v":"No"}]
[null,null,"Basic Needs and Wellness","Lack of technology or Wi-Fi","Send application to the student hardship fund/emergency grants to apply for funds to purchase laptop or wifi hot spot.","Start of the term","Alerts, Progress Reports, Intake Survey, Quick Polls, Survey","E-mail Messaging",null,null,null,null,null,null,"a2",{"$f":"VLOOKUP(Index62[[#This Row],[Code]],Index6[[#All],[Code]:[Include in your intervention plan for this academic year?]],3,0)","v":"No"}]
[null,null,"Basic Needs and Wellness","Lack of technology or Wi-Fi","If campus is closed, e-mail local students with information about where students can access wifi in areas on or surrounding campus.","Start of the term","Alerts, Progress Reports, Intake Survey, Quick Polls, Survey","E-mail Messaging",null,null,null,null,null,null,"a3",{"$f":"VLOOKUP(Index62[[#This Row],[Code]],Index6[[#All],[Code]:[Include in your intervention plan for this academic year?]],3,0)","v":"No"}]
[null,null,"Basic Needs and Wellness","Mental health concerns","Refer student to institution counseling services, wellness office, or community agencies.","Anytime need identified","Alerts, Progress Reports, Intake Survey, Quick Polls, Survey","E-mail Messaging, Alerts & Cases",null,null,null,null,null,null,"b1",{"$f":"VLOOKUP(Index62[[#This Row],[Code]],Index6[[#All],[Code]:[Include in your intervention plan for this academic year?]],3,0)","v":"No"}]
[null,null,"Basic Needs and Wellness","Mental health concerns","E-mail students links to free online mental health resources to access including any available benefits through student health insurance.","Anytime need identified","Alerts, Progress Reports, Intake Survey, Quick Polls, Survey","E-mail Messaging",null,null,null,null,null,null,"b2",{"$f":"VLOOKUP(Index62[[#This Row],[Code]],Index6[[#All],[Code]:[Include in your intervention plan for this academic year?]],3,0)","v":"No"}]
[null,null,"Basic Needs and Wellness","Mental health concerns","Share information about available support groups or peer-led organizations.","Anytime need identified","Alerts, Progress Reports, Intake Survey, Quick Polls, Survey","E-mail Messaging",null,null,null,null,null,null,"b3",{"$f":"VLOOKUP(Index62[[#This Row],[Code]],Index6[[#All],[Code]:[Include in your intervention plan for this academic year?]],3,0)","v":"No"}]
[null,null,"Basic Needs and Wellness","Physical health concerns","Refer students to institution health services for an appointment.","Anytime need identified","Alerts, Progress Reports, Intake Survey, Quick Polls, Survey","E-mail Messaging",null,null,null,null,null,null,"c1",{"$f":"VLOOKUP(Index62[[#This Row],[Code]],Index6[[#All],[Code]:[Include in your intervention plan for this academic year?]],3,0)","v":"No"}]
[null,null,"Basic Needs and Wellness","Physical health concerns","E-mail students information about relevant available benefits through student health insurance, including telehealth support.","Anytime need identified","Alerts, Progress Reports, Intake Survey, Quick Polls, Survey","E-mail Messaging",null,null,null,null,null,null,"c2",{"$f":"VLOOKUP(Index62[[#This Row],[Code]],Index6[[#All],[Code]:[Include in your intervention plan for this academic year?]],3,0)","v":"No"}]
[null,null,"Basic Needs and Wellness","Physical health concerns","Refer students to local clinics or community health agencies.","Anytime need identified","Alerts, Progress Reports, Intake Survey, Quick Polls, Survey","E-mail Messaging",null,null,null,null,null,null,"c3",{"$f":"VLOOKUP(Index62[[#This Row],[Code]],Index6[[#All],[Code]:[Include in your intervention plan for this academic year?]],3,0)","v":"No"}]
[null,null,"Basic Needs and Wellness","Food insecurity","Share information about food bank resources on campus or in community.","Anytime need identified","Alerts, Progress Reports, Intake Survey, Quick Polls, Survey","E-mail Messaging",null,null,null,null,null,null,"d1",{"$f":"VLOOKUP(Index62[[#This Row],[Code]],Index6[[#All],[Code]:[Include in your intervention plan for this academic year?]],3,0)","v":"No"}]
[null,null,"Basic Needs and Wellness","Food insecurity","Send application to the student hardship fund/emergency grants.","Anytime need identified","Alerts, Progress Reports, Intake Survey, Quick Polls, Survey","E-mail Messaging",null,null,null,null,null,null,"d2",{"$f":"VLOOKUP(Index62[[#This Row],[Code]],Index6[[#All],[Code]:[Include in your intervention plan for this academic year?]],3,0)","v":"No"}]
[null,null,"Basic Needs and Wellness","Housing insecurity","Send application to the student hardship fund/emergency grants.","Anytime need identified","Alerts, Progress Reports, Intake Survey, Quick Polls, Survey","E-mail Messaging",null,null,null,null,null,null,"e1",{"$f":"VLOOKUP(Index62[[#This Row],[Code]],Index6[[#All],[Code]:[Include in your intervention plan for this academic year?]],3,0)","v":"No"}]
[null,null,"Basic Needs and Wellness","Housing insecurity","Refer students to local community agencies that provide housing assistance.","Anytime need identified","Alerts, Progress Reports, Intake Survey, Quick Polls, Survey","E-mail Messaging",null,null,null,null,null,null,"e2",{"$f":"VLOOKUP(Index62[[#This Row],[Code]],Index6[[#All],[Code]:[Include in your intervention plan for this academic year?]],3,0)","v":"No"}]
[null,null,"Basic Needs and Wellness","Housing insecurity","Connect students with institution housing office for any available on-campus housing assistance.","Anytime need identified","Alerts, Progress Reports, Intake Survey, Quick Polls, Survey","E-mail Messaging, Alerts & Cases",null,null,null,null,null,null,"e3",{"$f":"VLOOKUP(Index62[[#This Row],[Code]],Index6[[#All],[Code]:[Include in your intervention plan for this academic year?]],3,0)","v":"No"}]
[null,null,"Financial","Unmet financial need or change in financial circumstances","Send application to the student hardship fund/emergency grants.","Anytime need identified","Alerts, Intake Survey, Quick Polls, Survey, Advanced Search, Categories, Tags, Student Lists","E-mail Messaging",null,null,null,null,null,null,"f1",{"$f":"VLOOKUP(Index62[[#This Row],[Code]],Index6[[#All],[Code]:[Include in your intervention plan for this academic year?]],3,0)","v":"No"}]
[null,null,"Financial","Unmet financial need or change in financial circumstances","E-mail information on available scholarships or financial aid the student has not applied for.","Anytime need identified","Alerts, Intake Survey, Quick Polls, Survey, Advanced Search, Categories, Tags, Student Lists","E-mail Messaging",null,null,null,null,null,null,"f2",{"$f":"VLOOKUP(Index62[[#This Row],[Code]],Index6[[#All],[Code]:[Include in your intervention plan for this academic year?]],3,0)","v":"No"}]
[null,null,"Financial","Unmet financial need or change in financial circumstances","Send an appointment campaign for students to schedule a financial counseling meeting or workshop.","Anytime need identified","Alerts, Intake Survey, Quick Polls, Survey, Advanced Search, Categories, Tags, Student Lists","Appointment Campaigns",null,null,null,null,null,null,"f3",{"$f":"VLOOKUP(Index62[[#This Row],[Code]],Index6[[#All],[Code]:[Include in your intervention plan for this academic year?]],3,0)","v":"No"}]
[null,null,"Financial","Missing out on aid / FAFSA not filed","Send an appointment campaign for students to meet with Financial Aid office about completing the FAFSA.","In alignment with FAFSA deadlines","Advanced Search, Categories, Tags, Student Lists","Appointment Campaigns",null,null,null,null,null,null,"g1",{"$f":"VLOOKUP(Index62[[#This Row],[Code]],Index6[[#All],[Code]:[Include in your intervention plan for this academic year?]],3,0)","v":"No"}]
[null,null,"Financial","Missing out on aid / FAFSA not filed","Conduct multimodal (e-mail, text, phone) outreach to students to remind them about FAFSA deadline and process to complete.","In alignment with FAFSA deadlines","Advanced Search, Categories, Tags, Student Lists","E-mail & Text Messaging",null,null,null,null,null,null,"g2",{"$f":"VLOOKUP(Index62[[#This Row],[Code]],Index6[[#All],[Code]:[Include in your intervention plan for this academic year?]],3,0)","v":"No"}]
[null,null,"Financial","Outstanding balances preventing registration","Send an appointment campaign for students to meet with Business Office or Student Accounts about resolving balances prior to course registration window.","Before registration period","Advanced Search, Categories, Tags, Student Lists","Appointment Campaigns",null,null,null,null,null,null,"h1",{"$f":"VLOOKUP(Index62[[#This Row],[Code]],Index6[[#All],[Code]:[Include in your intervention plan for this academic year?]],3,0)","v":"No"}]
[null,null,"Financial","Outstanding balances preventing registration","Conduct multimodal (e-mail, text, phone) outreach to students to remind them about resolving balances in order to be able to register for classes.","Before registration period","Advanced Search, Categories, Tags, Student Lists","E-mail & Text Messaging",null,null,null,null,null,null,"h2",{"$f":"VLOOKUP(Index62[[#This Row],[Code]],Index6[[#All],[Code]:[Include in your intervention plan for this academic year?]],3,0)","v":"No"}]
[null,null,"Financial","Student employment needs","Send an appointment campaign to work-study students for them to meet with the Office of Student Employment to identify job placements.","Start of the term","Intake Survey, Quick Polls, Advanced Search, Categories, Tags, Student Lists","Appointment Campaigns",null,null,null,null,null,null,"i1",{"$f":"VLOOKUP(Index62[[#This Row],[Code]],Index6[[#All],[Code]:[Include in your intervention plan for this academic year?]],3,0)","v":"No"}]
[null,null,"Financial","Student employment needs","E-mail work-study students or those in need of employment link to institution student employment portal.","Start of the term","Intake Survey, Quick Polls, Advanced Search, Categories, Tags, Student Lists","E-mail Messaging",null,null,null,null,null,null,"i2",{"$f":"VLOOKUP(Index62[[#This Row],[Code]],Index6[[#All],[Code]:[Include in your intervention plan for this academic year?]],3,0)","v":"No"}]
[null,null,"Financial","Student employment needs","E-mail work-study students or those in need of employment information on local employers with history of hiring students.","Start of the term","Intake Survey, Quick Polls, Advanced Search, Categories, Tags, Student Lists","E-mail Messaging",null,null,null,null,null,null,"i3",{"$f":"VLOOKUP(Index62[[#This Row],[Code]],Index6[[#All],[Code]:[Include in your intervention plan for this academic year?]],3,0)","v":"No"}]
[null,null,"Engagement and Belonging","Virtual or hybrid environment engagement","Send an appointment campaign for student to meet with their advisor or success coach to discuss their engagement in their courses and identify any barriers to participating in courses virtually.","Start of the term or anytime need identified","Alerts, Progress Reports, Intake Survey, Quick Polls, Survey","Appointment Campaigns",null,null,null,null,null,null,"j1",{"$f":"VLOOKUP(Index62[[#This Row],[Code]],Index6[[#All],[Code]:[Include in your intervention plan for this academic year?]],3,0)","v":"No"}]
[null,null,"Engagement and Belonging","Virtual or hybrid environment engagement","Reach out to students via text or e-mail to check and see how they are doing and identify any barriers to participating in courses virtually.","Start of the term or anytime need identified","Alerts, Progress Reports, Intake Survey, Quick Polls, Survey","E-mail & Text Messaging",null,null,null,null,null,null,"j2",{"$f":"VLOOKUP(Index62[[#This Row],[Code]],Index6[[#All],[Code]:[Include in your intervention plan for this academic year?]],3,0)","v":"No"}]
[null,null,"Engagement and Belonging","Lack of confidence","Reach out to students via text or e-mail to promote campus resources geared towards building confidence in aligned area(s). ","Start of the term or anytime need identified","Alerts, Intake Survey, Quick Polls, Survey","E-mail & Text Messaging",null,null,null,null,null,null,"k1",{"$f":"VLOOKUP(Index62[[#This Row],[Code]],Index6[[#All],[Code]:[Include in your intervention plan for this academic year?]],3,0)","v":"No"}]
[null,null,"Engagement and Belonging","Lack of confidence","Send an appointment campaign for advisor or staff to meet with the student, discuss their feelings and experiences, and develop an action plan to build confidence in aligned area(s).","Start of the term or anytime need identified","Alerts, Intake Survey, Quick Polls, Survey","Appointment Campaigns",null,null,null,null,null,null,"k2",{"$f":"VLOOKUP(Index62[[#This Row],[Code]],Index6[[#All],[Code]:[Include in your intervention plan for this academic year?]],3,0)","v":"No"}]
[null,null,"Engagement and Belonging","Lack of confidence","Send an appointment campaign to invite students to a workshop or small group session focused on confidence building.","Start of the term or anytime need identified","Alerts, Intake Survey, Quick Polls, Survey","Appointment Campaigns",null,null,null,null,null,null,"k3",{"$f":"VLOOKUP(Index62[[#This Row],[Code]],Index6[[#All],[Code]:[Include in your intervention plan for this academic year?]],3,0)","v":"No"}]
[null,null,"Engagement and Belonging","Lack of confidence","Peer mentors reach out to students via text or e-mail to connect to discuss their experiences and help the students develop an action plan to build confidence in aligned area(s). ","Start of the term or anytime need identified","Alerts, Intake Survey, Quick Polls, Survey","E-mail & Text Messaging",null,null,null,null,null,null,"k4",{"$f":"VLOOKUP(Index62[[#This Row],[Code]],Index6[[#All],[Code]:[Include in your intervention plan for this academic year?]],3,0)","v":"No"}]
[null,null,"Engagement and Belonging","Campus culture or climate","Send an appointment campaign for students to meet with their advisor, success coach, or staff who have a connection (e.g. Athletics, Residence Life, Student Life) to discuss their experiences and identify the best ways to support.","Start of the term or anytime need identified","Alerts, Intake Survey, Quick Polls, Survey","Appointment Campaigns",null,null,null,null,null,null,"l1",{"$f":"VLOOKUP(Index62[[#This Row],[Code]],Index6[[#All],[Code]:[Include in your intervention plan for this academic year?]],3,0)","v":"No"}]
[null,null,"Engagement and Belonging","Campus culture or climate","E-mail information about relevant campus resources, identity centers, and student organizations - particularly highlighting where specific programs are tailored to particular student populations and needs.","Start of the term or anytime need identified","Alerts, Intake Survey, Quick Polls, Survey","E-mail Messaging",null,null,null,null,null,null,"l2",{"$f":"VLOOKUP(Index62[[#This Row],[Code]],Index6[[#All],[Code]:[Include in your intervention plan for this academic year?]],3,0)","v":"No"}]
[null,null,"Engagement and Belonging","Relationships with peers","For on-campus students,  Residence Hall Directors e-mail or text the students to invite them to upcoming residence hall programs.","Start of the term or anytime need identified","Alerts, Intake Survey, Quick Polls, Survey","E-mail or Text Messaging",null,null,null,null,null,null,"m1",{"$f":"VLOOKUP(Index62[[#This Row],[Code]],Index6[[#All],[Code]:[Include in your intervention plan for this academic year?]],3,0)","v":"No"}]
[null,null,"Engagement and Belonging","Relationships with peers","E-mail information about Study Buddies feature in the Navigate Student app to help students form study groups with peers in their courses.","Start of the term or anytime need identified","Alerts, Intake Survey, Quick Polls, Survey","E-mail Messaging",null,null,null,null,null,null,"m2",{"$f":"VLOOKUP(Index62[[#This Row],[Code]],Index6[[#All],[Code]:[Include in your intervention plan for this academic year?]],3,0)","v":"No"}]
[null,null,"Engagement and Belonging","Relationships with peers","E-mail information for how to sign up for any peer mentorship programs.","Start of the term or anytime need identified","Alerts, Intake Survey, Quick Polls, Survey","E-mail Messaging",null,null,null,null,null,null,"m3",{"$f":"VLOOKUP(Index62[[#This Row],[Code]],Index6[[#All],[Code]:[Include in your intervention plan for this academic year?]],3,0)","v":"No"}]
[null,null,"Engagement and Belonging","Relationships with peers","E-mail website or information for getting involved with student activities and organizations and any relevant upcoming events (e.g. involvement fair). Tailor communications based on any known interests or student attributes.","Start of the term or anytime need identified","Alerts, Intake Survey, Quick Polls, Survey","E-mail Messaging",null,null,null,null,null,null,"m4",{"$f":"VLOOKUP(Index62[[#This Row],[Code]],Index6[[#All],[Code]:[Include in your intervention plan for this academic year?]],3,0)","v":"No"}]
[null,null,"Engagement and Belonging","Relationships with peers","Send an appointment campaign for students to sign up for individual meetings, group meetings, or an info session with Student Life or student leaders about getting involved.","Start of the term or anytime need identified","Alerts, Intake Survey, Quick Polls, Survey","Appointment Campaigns",null,null,null,null,null,null,"m5",{"$f":"VLOOKUP(Index62[[#This Row],[Code]],Index6[[#All],[Code]:[Include in your intervention plan for this academic year?]],3,0)","v":"No"}]
[null,null,"Engagement and Belonging","Relationships with staff & faculty","Send an appointment campaign for students to meet with their advisor, success coach, or relevant staff (e.g. Athletics Coach, Residence Hall Director) to schedule time for getting to know each other better.","Start of the term or anytime need identified","Alerts, Intake Survey, Quick Polls, Survey","Appointment Campaigns",null,null,null,null,null,null,"n1",{"$f":"VLOOKUP(Index62[[#This Row],[Code]],Index6[[#All],[Code]:[Include in your intervention plan for this academic year?]],3,0)","v":"No"}]
[null,null,"Engagement and Belonging","Relationships with staff & faculty","E-mail information about any existing faculty mentorship programs or opportunities to participate in research with faculty.","Start of the term or anytime need identified","Alerts, Intake Survey, Quick Polls, Survey","E-mail Messaging",null,null,null,null,null,null,"n2",{"$f":"VLOOKUP(Index62[[#This Row],[Code]],Index6[[#All],[Code]:[Include in your intervention plan for this academic year?]],3,0)","v":"No"}]
[null,null,"Engagement and Belonging","Relationships with staff & faculty","Faculty e-mail students in their courses encouraging them to attend office hours for relationship building, even if they don't have course related questions.","Start of the term or anytime need identified","Alerts, Intake Survey, Quick Polls, Survey","E-mail Messaging",null,null,null,null,null,null,"n3",{"$f":"VLOOKUP(Index62[[#This Row],[Code]],Index6[[#All],[Code]:[Include in your intervention plan for this academic year?]],3,0)","v":"No"}]
[null,null,"Engagement and Belonging","Relationships with staff & faculty","For on-campus students, Residence Hall Directors e-mail or text the students to invite them to upcoming residence hall programs.","Start of the term or anytime need identified","Alerts, Intake Survey, Quick Polls, Survey","E-mail or Text Messaging",null,null,null,null,null,null,"n4",{"$f":"VLOOKUP(Index62[[#This Row],[Code]],Index6[[#All],[Code]:[Include in your intervention plan for this academic year?]],3,0)","v":"No"}]
[null,null,"Engagement and Belonging","Involvement in student activities or organizations","E-mail website or information for getting involved with student activities and organizations and any relevant upcoming events (e.g. involvement fair). Tailor communications based on any known interests or student attributes.","Start of the term or anytime need identified","Alerts, Intake Survey, Quick Polls, Survey, Advanced Search, Categories, Tags, Student Lists","E-mail Messaging",null,null,null,null,null,null,"o1",{"$f":"VLOOKUP(Index62[[#This Row],[Code]],Index6[[#All],[Code]:[Include in your intervention plan for this academic year?]],3,0)","v":"No"}]
[null,null,"Engagement and Belonging","Involvement in student activities or organizations","Send an appointment campaign for students to sign up for individual meetings, group meetings, or an info session with Student Life or student leaders about getting involved.","Start of the term or anytime need identified","Alerts, Intake Survey, Quick Polls, Survey, Advanced Search, Categories, Tags, Student Lists","E-mail Messaging",null,null,null,null,null,null,"o2",{"$f":"VLOOKUP(Index62[[#This Row],[Code]],Index6[[#All],[Code]:[Include in your intervention plan for this academic year?]],3,0)","v":"No"}]
[null,null,"Academic Performance","Low mid-term grades ","Send appointment campaigns to encourage students to schedule tutoring appointments for specific courses.","After midterm grades","Progress Reports, Advanced Search","Appointment Campaigns",null,null,null,null,null,null,"p1",{"$f":"VLOOKUP(Index62[[#This Row],[Code]],Index6[[#All],[Code]:[Include in your intervention plan for this academic year?]],3,0)","v":"No"}]
[null,null,"Academic Performance","Low mid-term grades ","E-mail students with information about how to make tutoring appointments or receive academic support (e.g. coaching, supplemental instruction).","After midterm grades","Progress Reports, Advanced Search, Reports","E-mail Messaging",null,null,null,null,null,null,"p2",{"$f":"VLOOKUP(Index62[[#This Row],[Code]],Index6[[#All],[Code]:[Include in your intervention plan for this academic year?]],3,0)","v":"No"}]
[null,null,"Academic Performance","Low mid-term grades ","Send appointment campaigns for students to schedule meetings to make a plan for how to ensure they pass the course.","After midterm grades","Progress Reports, Advanced Search, Reports","Appointment Campaigns",null,null,null,null,null,null,"p3",{"$f":"VLOOKUP(Index62[[#This Row],[Code]],Index6[[#All],[Code]:[Include in your intervention plan for this academic year?]],3,0)","v":"No"}]
[null,null,"Academic Performance","Murky Middle (2.0-3.0 GPA) or close to probation","Send an appointment campaign to encourage students to meet to discuss their support needs and make a plan for the term.","Start of the term","Population Health Dashboard, Advanced Search","Appointment Campaigns",null,null,null,null,null,null,"q1",{"$f":"VLOOKUP(Index62[[#This Row],[Code]],Index6[[#All],[Code]:[Include in your intervention plan for this academic year?]],3,0)","v":"No"}]
[null,null,"Academic Performance","Murky Middle (2.0-3.0 GPA) or close to probation","E-mail students to make them aware they may be in need of academic support to stay on track to graduate. Share information on how to make tutoring appointments or receive academic support.","Start of the term","Population Health Dashboard, Advanced Search","E-mail Messaging",null,null,null,null,null,null,"q2",{"$f":"VLOOKUP(Index62[[#This Row],[Code]],Index6[[#All],[Code]:[Include in your intervention plan for this academic year?]],3,0)","v":"No"}]
[null,null,"Academic Performance","Conditionally admitted or academically underprepared","Send an appointment campaign to encourage students to meet to discuss their support needs and make a plan for the term.","Start of the term","Advanced Search, Categories, Tags, Student Lists","Appointment Campaigns",null,null,null,null,null,null,"r1",{"$f":"VLOOKUP(Index62[[#This Row],[Code]],Index6[[#All],[Code]:[Include in your intervention plan for this academic year?]],3,0)","v":"No"}]
[null,null,"Academic Performance","Conditionally admitted or academically underprepared","E-mail students to make them aware they may be in need of academic support to stay on track to graduate. Share information on how to make tutoring appointments or receive academic support.","Start of the term","Advanced Search, Categories, Tags, Student Lists","E-mail Messaging",null,null,null,null,null,null,"r2",{"$f":"VLOOKUP(Index62[[#This Row],[Code]],Index6[[#All],[Code]:[Include in your intervention plan for this academic year?]],3,0)","v":"No"}]
[null,null,"Academic Performance","Conditionally admitted or academically underprepared","Send an appointment campaign for students to schedule a check-in meeting to discuss how their courses are going. Direct them to academic support as needed based on their early course performance and needs.","Prior to mid-terms","Advanced Search, Categories, Tags, Student Lists","Appointment Campaigns",null,null,null,null,null,null,"r3",{"$f":"VLOOKUP(Index62[[#This Row],[Code]],Index6[[#All],[Code]:[Include in your intervention plan for this academic year?]],3,0)","v":"No"}]
[null,null,"Academic Performance","Conditionally admitted or academically underprepared","Reach out via text or e-mail to check-in and see how students' courses are going. Direct them to academic support as needed based on their early course performance and needs.","Prior to mid-terms","Advanced Search, Categories, Tags, Student Lists","E-mail or Text Messaging",null,null,null,null,null,null,"r4",{"$f":"VLOOKUP(Index62[[#This Row],[Code]],Index6[[#All],[Code]:[Include in your intervention plan for this academic year?]],3,0)","v":"No"}]
[null,null,"Academic Performance","Declining GPA","Send an appointment campaign to encourage students to meet to discuss their support needs and make a plan for the term.","Start of the term","Population Health Dashboard","Appointment Campaigns",null,null,null,null,null,null,"s1",{"$f":"VLOOKUP(Index62[[#This Row],[Code]],Index6[[#All],[Code]:[Include in your intervention plan for this academic year?]],3,0)","v":"No"}]
[null,null,"Academic Performance","Declining GPA","E-mail students to make them aware they may be in need of academic support to stay on track to graduate. Share information on how to make tutoring appointments or receive academic support.","Start of the term","Population Health Dashboard","E-mail Messaging",null,null,null,null,null,null,"s2",{"$f":"VLOOKUP(Index62[[#This Row],[Code]],Index6[[#All],[Code]:[Include in your intervention plan for this academic year?]],3,0)","v":"No"}]
[null,null,"Academic Performance","Academic Probation","Send an appointment campaign to encourage students to meet to discuss their support needs and make a plan for the term.","Start of the term","Population Health Dashboard, Advanced Search","Appointment Campaigns",null,null,null,null,null,null,"t1",{"$f":"VLOOKUP(Index62[[#This Row],[Code]],Index6[[#All],[Code]:[Include in your intervention plan for this academic year?]],3,0)","v":"No"}]
[null,null,"Academic Performance","Academic Probation","E-mail students to make them aware they may be in need of academic support to stay on track to graduate. Share information on how to make tutoring appointments or receive academic support.","Start of the term","Population Health Dashboard, Advanced Search","E-mail Messaging",null,null,null,null,null,null,"t2",{"$f":"VLOOKUP(Index62[[#This Row],[Code]],Index6[[#All],[Code]:[Include in your intervention plan for this academic year?]],3,0)","v":"No"}]
[null,null,"Academic Progress","Underloading credits","Send an appointment campaign for students to schedule a meeting to discuss revising their registered courses for the upcoming term by adding credits.","After registration period","Population Health Dashboard, Advanced Search","Appointment Campaigns",null,null,null,null,null,null,"u1",{"$f":"VLOOKUP(Index62[[#This Row],[Code]],Index6[[#All],[Code]:[Include in your intervention plan for this academic year?]],3,0)","v":"No"}]
[null,null,"Academic Progress","Underloading credits","E-mail students to make them aware of the potential impacts of underloading credits on time to degree, financial aid, and debt and encourage them to register for additional credits for the upcoming term.","After registration period","Population Health Dashboard, Advanced Search","E-mail Messaging",null,null,null,null,null,null,"u2",{"$f":"VLOOKUP(Index62[[#This Row],[Code]],Index6[[#All],[Code]:[Include in your intervention plan for this academic year?]],3,0)","v":"No"}]
[null,null,"Academic Progress","No academic plan submitted","Send an appointment campaign for students to schedule a meeting to work on their academic plan. If available, make suggestions in the Navigate Shared Workspace tool for the student to review in advance and discuss in the meeting.","Before registration period","Academic Planning Dashboard, Advanced Search","Appointment Campaigns",null,null,null,null,null,null,"v1",{"$f":"VLOOKUP(Index62[[#This Row],[Code]],Index6[[#All],[Code]:[Include in your intervention plan for this academic year?]],3,0)","v":"No"}]
[null,null,"Academic Progress","No academic plan submitted","E-mail students to discuss next steps on submitting their academic plan and identify any support needs. If available, make suggestions in the Shared Workspace tool for the student to review or flag previously made suggestions.","After academic advising period","Academic Planning Dashboard, Advanced Search","E-mail Messaging",null,null,null,null,null,null,"v2",{"$f":"VLOOKUP(Index62[[#This Row],[Code]],Index6[[#All],[Code]:[Include in your intervention plan for this academic year?]],3,0)","v":"No"}]
[null,null,"Academic Progress","Accumulating unproductive credits/impacts of major switching","Send an appointment campaign to schedule an advising meeting to discuss the impact of courses taken to-date and the student's current major, academic plan, and courses to register for the upcoming term to stay on track to graduate.","Before registration period","Population Health Dashboard, Advanced Search","Appointment Campaigns",null,null,null,null,null,null,"w1",{"$f":"VLOOKUP(Index62[[#This Row],[Code]],Index6[[#All],[Code]:[Include in your intervention plan for this academic year?]],3,0)","v":"No"}]
[null,null,"Academic Progress","Taking courses too late","Send an appointment campaign to schedule an advising meeting to discuss the impact of the timing of courses taken to-date, the student's academic plan, and courses to register for the upcoming term to stay on track to graduate.","Before registration period","Population Health Dashboard, Success Markers, Advanced Search","Appointment Campaigns",null,null,null,null,null,null,"x1",{"$f":"VLOOKUP(Index62[[#This Row],[Code]],Index6[[#All],[Code]:[Include in your intervention plan for this academic year?]],3,0)","v":"No"}]
[null,null,"Re-Enrollment","Unregistered without holds/in good academic standing ","Advisors do multimodal outreach (e-mail, text, call) to get students registered or identify barriers to registration and connect to appropriate support.","After registration period","Advanced Search, Categories, Tags, Student Lists","E-mail & Text Messaging",null,null,null,null,null,null,"z1",{"$f":"VLOOKUP(Index62[[#This Row],[Code]],Index6[[#All],[Code]:[Include in your intervention plan for this academic year?]],3,0)","v":"Yes"}]
[null,null,"Re-Enrollment","Unregistered with unresolved holds","Relevant offices send appointment campaigns to schedule meetings to resolve holds.","After registration period","Advanced Search, Categories, Tags, Student Lists","Appointment Campaigns",null,null,null,null,null,null,"aa1",{"$f":"VLOOKUP(Index62[[#This Row],[Code]],Index6[[#All],[Code]:[Include in your intervention plan for this academic year?]],3,0)","v":"Yes"}]
[null,null,"Re-Enrollment","Unregistered with unresolved holds","Relevant offices do multimodal outreach (e-mail, text, call) to help resolve holds.","After registration period","Advanced Search, Categories, Tags, Student Lists","E-mail & Text Messaging",null,null,null,null,null,null,"aa2",{"$f":"VLOOKUP(Index62[[#This Row],[Code]],Index6[[#All],[Code]:[Include in your intervention plan for this academic year?]],3,0)","v":"Yes"}]
[null,null,"Re-Enrollment","Unregistered and unresponsive to advisor outreach","Multimodal individualized outreach (e-mail, text, call) to confirm re-enrollment plans and identify student needs or issues. Where possible, this is conducted by staff who have relationships with the students.","After registration period","Advanced Search, Categories, Tags, Student Lists","E-mail & Text Messaging",null,null,null,null,null,null,"ab1",{"$f":"VLOOKUP(Index62[[#This Row],[Code]],Index6[[#All],[Code]:[Include in your intervention plan for this academic year?]],3,0)","v":"Yes"}]
[null,null,{"$f":"Index6[[#This Row],[Category]]","v":"[Optional - Insert additional categories here]"},{"$f":"Index6[[#This Row],[Student Need/Subpopulation]]","v":"[Optional - Insert additional student needs/subpopulations here (1)]"},{"$f":"Index6[[#This Row],[Intervention Action]]","v":"[Optional - Insert additional Intervention Actions here]"},null,null,null,null,null,null,null,null,null,"zz1",{"$f":"VLOOKUP(Index62[[#This Row],[Code]],Index6[[#All],[Code]:[Include in your intervention plan for this academic year?]],3,0)","v":"No"}]
[null,null,{"$f":"Index6[[#This Row],[Category]]","v":"[Optional - Insert additional categories here]"},{"$f":"Index6[[#This Row],[Student Need/Subpopulation]]","v":"[Optional - Insert additional student needs/subpopulations here (2)]"},{"$f":"Index6[[#This Row],[Intervention Action]]","v":"[Optional - Insert additional Intervention Actions here]"},null,null,null,null,null,null,null,null,null,"zz2",{"$f":"VLOOKUP(Index62[[#This Row],[Code]],Index6[[#All],[Code]:[Include in your intervention plan for this academic year?]],3,0)","v":"No"}]
[null,null,{"$f":"Index6[[#This Row],[Category]]","v":"[Optional - Insert additional categories here]"},{"$f":"Index6[[#This Row],[Student Need/Subpopulation]]","v":"[Optional - Insert additional student needs/subpopulations here (3)]"},{"$f":"Index6[[#This Row],[Intervention Action]]","v":"[Optional - Insert additional Intervention Actions here]"},null,null,null,null,null,null,null,null,null,"zz3",{"$f":"VLOOKUP(Index62[[#This Row],[Code]],Index6[[#All],[Code]:[Include in your intervention plan for this academic year?]],3,0)","v":"No"}]
[null,null,{"$f":"Index6[[#This Row],[Category]]","v":"[Optional - Insert additional categories here]"},{"$f":"Index6[[#This Row],[Student Need/Subpopulation]]","v":"[Optional - Insert additional student needs/subpopulations here (4)]"},{"$f":"Index6[[#This Row],[Intervention Action]]","v":"[Optional - Insert additional Intervention Actions here]"},null,null,null,null,null,null,null,null,null,"zz4",{"$f":"VLOOKUP(Index62[[#This Row],[Code]],Index6[[#All],[Code]:[Include in your intervention plan for this academic year?]],3,0)","v":"No"}]

{"sheet":"Lists and Sum","index":3,"n_rows":13,"n_cols":8,"rows_kept":13,"cut":false,"hidden":true,"merged":[[0,0,0,4]]}
["Lists"]
["How well do you think this type of student need/concern is being met?","VLOOKUP","How much effort would be needed to better meet these student needs/concerns?","VLOOKUP","What priority has your institution made this student need/concern?","VLOOKUP",null,"INCLUDE IN YOUR INTERVENTION CALENDAR?"]
["1 - Very Well",1,"1 - High Effort",1,"1 - Very Low Priority",1,null,"Yes"]
["2 - Somewhat Well",2,"2 - Some Effort",2,"2 - Low Priority",2,null,"No"]
["3 - Somewhat Poorly",3,"3 - Little Effort",3,"3 - Somewhat High Priority",3]
["4 - Very Poorly",4,"4 - Very Little Effort",4,"4 - High Priority",4]
[]
[]
[]
[]
[]
[]
["Protect password is \"eab2020\""]